{"text_format":"3","workbook":"xlsx","n_sheets":4,"sheets":["Budgetöversikt","Sammanfattning av budget","Månatliga utgifter","Ytterligare data"],"not_rendered":{"charts":1,"images":4,"defined_names":7,"pivot_tables":2},"read":"whole","date_system":"1900"}

{"sheet":"Budgetöversikt","index":0,"n_rows":12,"n_cols":8,"rows_kept":12,"merged":[[1,1,1,2],[2,1,2,2],[3,1,3,2],[4,1,4,2]]}
[{"$nulls":7}," "]
[null,"Saldo"]
[null,"Planerat saldo",null,{"$f":"Förväntade_inkomster-Förväntade_utgifter","v":{"v":1585,"d":"1,585 kr"}},null,"Planerade minusutgifter"]
[null,"Verkligt saldo ",null,{"$f":"Faktiska_inkomster-Faktiska_utgifter","v":{"v":1740,"d":"1,740 kr"}},null,"Verkliga minusutgifter"]
[null,"Skillnad",null,{"$f":"D4-D3","v":{"v":155,"d":"155 kr"}},null,"Verklig minus planerad"]
[null,"Inkomst",{"$nulls":3},"Utgifter"]
[null,null,"Beräknat","Faktisk",null,"Beräknat","Faktisk"]
[null,"Inkomst 1",{"v":6000,"d":"6,000 kr"},{"v":5800,"d":"5,800 kr"},null,{"$f":"SUM(Månatliga_utgifter_tabell[Planerad kostnad])","v":{"v":7915,"d":"7,915 kr"}},{"$f":"SUM(Månatliga_utgifter_tabell[Verklig kostnad])","v":{"v":7860,"d":"7,860 kr"}}]
[null,"Inkomst 2",{"v":1000,"d":"1,000 kr"},{"v":2300,"d":"2,300 kr"}]
[null,"Extrainkomst",{"v":2500,"d":"2,500 kr"},{"v":1500,"d":"1,500 kr"}]
[null,"Summa intäkter",{"$f":"SUM(C8:C10)","v":{"v":9500,"d":"9,500 kr"}},{"$f":"SUM(D8:D10)","v":{"v":9600,"d":"9,600 kr"}}]
[null,"Analys av faktiska utgifter"]

{"sheet":"Sammanfattning av budget","index":1,"n_rows":41,"n_cols":7,"rows_kept":41}
[null,"Sammanfattning av budget",{"$nulls":4}," "]
[]
[null,"Kategorier","Planerad kostnad ","Verklig kostnad ","Skillnad "]
[null,"Barn",{"v":140,"d":"140 kr"},{"v":140,"d":"140 kr"},{"v":0,"d":"0 kr"}]
[null,"Verksamhet utanför skolan",{"v":40,"d":"40 kr"},{"v":40,"d":"40 kr"},{"v":0,"d":"0 kr"}]
[null,"Medicin",null,null,{"v":0,"d":"0 kr"}]
[null,"Skolmaterial",null,null,{"v":0,"d":"0 kr"}]
[null,"Skolavgifter",{"v":100,"d":"100 kr"},{"v":100,"d":"100 kr"},{"v":0,"d":"0 kr"}]
[]
[null,"Nöjen",{"v":400,"d":"400 kr"},{"v":358,"d":"358 kr"},{"v":42,"d":"42 kr"}]
[null,"Konserter",{"v":50,"d":"50 kr"},{"v":40,"d":"40 kr"},{"v":10,"d":"10 kr"}]
[null,"Teater",{"v":200,"d":"200 kr"},{"v":150,"d":"150 kr"},{"v":50,"d":"50 kr"}]
[null,"Bio",{"v":50,"d":"50 kr"},{"v":28,"d":"28 kr"},{"v":22,"d":"22 kr"}]
[null,"Musik (CD, nedladdningar osv.)",{"v":50,"d":"50 kr"},{"v":30,"d":"30 kr"},{"v":20,"d":"20 kr"}]
[null,"Sportevenemang",{"v":0,"d":"0 kr"},{"v":40,"d":"40 kr"},{"v":-40,"d":"-40 kr"}]
[null,"Video/DVD (köpt)",{"v":20,"d":"20 kr"},{"v":50,"d":"50 kr"},{"v":-30,"d":"-30 kr"}]
[null,"Video/DVD (hyrd)",{"v":30,"d":"30 kr"},{"v":20,"d":"20 kr"},{"v":10,"d":"10 kr"}]
[]
[null,"Mat",{"v":1100,"d":"1,100 kr"},{"v":1320,"d":"1,320 kr"},{"v":-220,"d":"-220 kr"}]
[]
[null,"Gåvor och välgörenhet",{"v":100,"d":"100 kr"},{"v":125,"d":"125 kr"},{"v":-25,"d":"-25 kr"}]
[]
[null,"Bostad",{"v":2830,"d":"2,830 kr"},{"v":2702,"d":"2,702 kr"},{"v":-72,"d":"-72 kr"}]
[]
[null,"Försäkring",{"v":900,"d":"900 kr"},{"v":900,"d":"900 kr"},{"v":0,"d":"0 kr"}]
[]
[null,"Lån",{"v":200,"d":"200 kr"},{"v":200,"d":"200 kr"},{"v":0,"d":"0 kr"}]
[]
[null,"Hygien",{"v":150,"d":"150 kr"},{"v":140,"d":"140 kr"},{"v":10,"d":"10 kr"}]
[]
[null,"Husdjur",{"v":170,"d":"170 kr"},{"v":100,"d":"100 kr"},{"v":70,"d":"70 kr"}]
[]
[null,"Skatter",{"v":300,"d":"300 kr"},{"v":300,"d":"300 kr"},{"v":0,"d":"0 kr"}]
[]
[null,"Transport",{"v":1425,"d":"1,425 kr"},{"v":1375,"d":"1,375 kr"},{"v":50,"d":"50 kr"}]
[]
[null,"Sparande",{"v":200,"d":"200 kr"},{"v":200,"d":"200 kr"},{"v":0,"d":"0 kr"}]
[null,"Investeringskonto",{"v":200,"d":"200 kr"},{"v":200,"d":"200 kr"},{"v":0,"d":"0 kr"}]
[null,"Pensionssparande",null,null,{"v":0,"d":"0 kr"}]
[]
[null,"Grand Total",{"v":7915,"d":"7,915 kr"},{"v":7860,"d":"7,860 kr"},{"v":-145,"d":"-145 kr"}]

{"sheet":"Månatliga utgifter","index":2,"n_rows":61,"n_cols":8,"rows_kept":61}
[{"$nulls":7}," "]
[null,"Beskrivning","Kategori","Planerad kostnad","Verklig kostnad","Skillnad","Verklig kostnad, översikt"]
[null,"Verksamhet utanför skolan","Barn",{"v":40,"d":"40 kr"},{"v":40,"d":"40 kr"},{"$f":"IF(OR(Månatliga_utgifter_tabell[[#This Row],[Planerad kostnad]]=\"\",Månatliga_utgifter_tabell[[#This Row],[Verklig kostnad]]=\"\"),\"\",Månatliga_utgifter_tabell[[#This Row],[Planerad kostnad]]-Månatliga_utgifter_tabell[[#This Row],[Verklig kostnad]])","v":{"v":0,"d":"0 kr"}},{"$f":"Månatliga_utgifter_tabell[[#This Row],[Verklig kostnad]]","v":40}]
[null,"Medicin","Barn",null,null,{"$f":"IF(OR(Månatliga_utgifter_tabell[[#This Row],[Planerad kostnad]]=\"\",Månatliga_utgifter_tabell[[#This Row],[Verklig kostnad]]=\"\"),\"\",Månatliga_utgifter_tabell[[#This Row],[Planerad kostnad]]-Månatliga_utgifter_tabell[[#This Row],[Verklig kostnad]])","v":""},{"$f":"Månatliga_utgifter_tabell[[#This Row],[Verklig kostnad]]","v":0}]
[null,"Skolmaterial","Barn",null,null,{"$f":"IF(OR(Månatliga_utgifter_tabell[[#This Row],[Planerad kostnad]]=\"\",Månatliga_utgifter_tabell[[#This Row],[Verklig kostnad]]=\"\"),\"\",Månatliga_utgifter_tabell[[#This Row],[Planerad kostnad]]-Månatliga_utgifter_tabell[[#This Row],[Verklig kostnad]])","v":""},{"$f":"Månatliga_utgifter_tabell[[#This Row],[Verklig kostnad]]","v":0}]
[null,"Skolavgifter","Barn",{"v":100,"d":"100 kr"},{"v":100,"d":"100 kr"},{"$f":"IF(OR(Månatliga_utgifter_tabell[[#This Row],[Planerad kostnad]]=\"\",Månatliga_utgifter_tabell[[#This Row],[Verklig kostnad]]=\"\"),\"\",Månatliga_utgifter_tabell[[#This Row],[Planerad kostnad]]-Månatliga_utgifter_tabell[[#This Row],[Verklig kostnad]])","v":{"v":0,"d":"0 kr"}},{"$f":"Månatliga_utgifter_tabell[[#This Row],[Verklig kostnad]]","v":100}]
[null,"Konserter","Nöjen",{"v":50,"d":"50 kr"},{"v":40,"d":"40 kr"},{"$f":"IF(OR(Månatliga_utgifter_tabell[[#This Row],[Planerad kostnad]]=\"\",Månatliga_utgifter_tabell[[#This Row],[Verklig kostnad]]=\"\"),\"\",Månatliga_utgifter_tabell[[#This Row],[Planerad kostnad]]-Månatliga_utgifter_tabell[[#This Row],[Verklig kostnad]])","v":{"v":10,"d":"10 kr"}},{"$f":"Månatliga_utgifter_tabell[[#This Row],[Verklig kostnad]]","v":40}]
[null,"Teater","Nöjen",{"v":200,"d":"200 kr"},{"v":150,"d":"150 kr"},{"$f":"IF(OR(Månatliga_utgifter_tabell[[#This Row],[Planerad kostnad]]=\"\",Månatliga_utgifter_tabell[[#This Row],[Verklig kostnad]]=\"\"),\"\",Månatliga_utgifter_tabell[[#This Row],[Planerad kostnad]]-Månatliga_utgifter_tabell[[#This Row],[Verklig kostnad]])","v":{"v":50,"d":"50 kr"}},{"$f":"Månatliga_utgifter_tabell[[#This Row],[Verklig kostnad]]","v":150}]
[null,"Bio","Nöjen",{"v":50,"d":"50 kr"},{"v":28,"d":"28 kr"},{"$f":"IF(OR(Månatliga_utgifter_tabell[[#This Row],[Planerad kostnad]]=\"\",Månatliga_utgifter_tabell[[#This Row],[Verklig kostnad]]=\"\"),\"\",Månatliga_utgifter_tabell[[#This Row],[Planerad kostnad]]-Månatliga_utgifter_tabell[[#This Row],[Verklig kostnad]])","v":{"v":22,"d":"22 kr"}},{"$f":"Månatliga_utgifter_tabell[[#This Row],[Verklig kostnad]]","v":28}]
[null,"Musik (CD, nedladdningar osv.)","Nöjen",{"v":50,"d":"50 kr"},{"v":30,"d":"30 kr"},{"$f":"IF(OR(Månatliga_utgifter_tabell[[#This Row],[Planerad kostnad]]=\"\",Månatliga_utgifter_tabell[[#This Row],[Verklig kostnad]]=\"\"),\"\",Månatliga_utgifter_tabell[[#This Row],[Planerad kostnad]]-Månatliga_utgifter_tabell[[#This Row],[Verklig kostnad]])","v":{"v":20,"d":"20 kr"}},{"$f":"Månatliga_utgifter_tabell[[#This Row],[Verklig kostnad]]","v":30}]
[null,"Sportevenemang","Nöjen",{"v":0,"d":"0 kr"},{"v":40,"d":"40 kr"},{"$f":"IF(OR(Månatliga_utgifter_tabell[[#This Row],[Planerad kostnad]]=\"\",Månatliga_utgifter_tabell[[#This Row],[Verklig kostnad]]=\"\"),\"\",Månatliga_utgifter_tabell[[#This Row],[Planerad kostnad]]-Månatliga_utgifter_tabell[[#This Row],[Verklig kostnad]])","v":{"v":-40,"d":"-40 kr"}},{"$f":"Månatliga_utgifter_tabell[[#This Row],[Verklig kostnad]]","v":40}]
[null,"Video/DVD (köpt)","Nöjen",{"v":20,"d":"20 kr"},{"v":50,"d":"50 kr"},{"$f":"IF(OR(Månatliga_utgifter_tabell[[#This Row],[Planerad kostnad]]=\"\",Månatliga_utgifter_tabell[[#This Row],[Verklig kostnad]]=\"\"),\"\",Månatliga_utgifter_tabell[[#This Row],[Planerad kostnad]]-Månatliga_utgifter_tabell[[#This Row],[Verklig kostnad]])","v":{"v":-30,"d":"-30 kr"}},{"$f":"Månatliga_utgifter_tabell[[#This Row],[Verklig kostnad]]","v":50}]
[null,"Video/DVD (hyrd)","Nöjen",{"v":30,"d":"30 kr"},{"v":20,"d":"20 kr"},{"$f":"IF(OR(Månatliga_utgifter_tabell[[#This Row],[Planerad kostnad]]=\"\",Månatliga_utgifter_tabell[[#This Row],[Verklig kostnad]]=\"\"),\"\",Månatliga_utgifter_tabell[[#This Row],[Planerad kostnad]]-Månatliga_utgifter_tabell[[#This Row],[Verklig kostnad]])","v":{"v":10,"d":"10 kr"}},{"$f":"Månatliga_utgifter_tabell[[#This Row],[Verklig kostnad]]","v":20}]
[null,"Restaurangbesök","Mat",{"v":1000,"d":"1,000 kr"},{"v":1200,"d":"1,200 kr"},{"$f":"IF(OR(Månatliga_utgifter_tabell[[#This Row],[Planerad kostnad]]=\"\",Månatliga_utgifter_tabell[[#This Row],[Verklig kostnad]]=\"\"),\"\",Månatliga_utgifter_tabell[[#This Row],[Planerad kostnad]]-Månatliga_utgifter_tabell[[#This Row],[Verklig kostnad]])","v":{"v":-200,"d":"-200 kr"}},{"$f":"Månatliga_utgifter_tabell[[#This Row],[Verklig kostnad]]","v":1200}]
[null,"Matvaror","Mat",{"v":100,"d":"100 kr"},{"v":120,"d":"120 kr"},{"$f":"IF(OR(Månatliga_utgifter_tabell[[#This Row],[Planerad kostnad]]=\"\",Månatliga_utgifter_tabell[[#This Row],[Verklig kostnad]]=\"\"),\"\",Månatliga_utgifter_tabell[[#This Row],[Planerad kostnad]]-Månatliga_utgifter_tabell[[#This Row],[Verklig kostnad]])","v":{"v":-20,"d":"-20 kr"}},{"$f":"Månatliga_utgifter_tabell[[#This Row],[Verklig kostnad]]","v":120}]
[null,"Välgörenhet 1","Gåvor och välgörenhet",{"v":75,"d":"75 kr"},{"v":100,"d":"100 kr"},{"$f":"IF(OR(Månatliga_utgifter_tabell[[#This Row],[Planerad kostnad]]=\"\",Månatliga_utgifter_tabell[[#This Row],[Verklig kostnad]]=\"\"),\"\",Månatliga_utgifter_tabell[[#This Row],[Planerad kostnad]]-Månatliga_utgifter_tabell[[#This Row],[Verklig kostnad]])","v":{"v":-25,"d":"-25 kr"}},{"$f":"Månatliga_utgifter_tabell[[#This Row],[Verklig kostnad]]","v":100}]
[null,"Välgörenhet 2","Gåvor och välgörenhet",{"v":25,"d":"25 kr"},{"v":25,"d":"25 kr"},{"$f":"IF(OR(Månatliga_utgifter_tabell[[#This Row],[Planerad kostnad]]=\"\",Månatliga_utgifter_tabell[[#This Row],[Verklig kostnad]]=\"\"),\"\",Månatliga_utgifter_tabell[[#This Row],[Planerad kostnad]]-Månatliga_utgifter_tabell[[#This Row],[Verklig kostnad]])","v":{"v":0,"d":"0 kr"}},{"$f":"Månatliga_utgifter_tabell[[#This Row],[Verklig kostnad]]","v":25}]
[null,"Gåva 1","Gåvor och välgörenhet",null,null,{"$f":"IF(OR(Månatliga_utgifter_tabell[[#This Row],[Planerad kostnad]]=\"\",Månatliga_utgifter_tabell[[#This Row],[Verklig kostnad]]=\"\"),\"\",Månatliga_utgifter_tabell[[#This Row],[Planerad kostnad]]-Månatliga_utgifter_tabell[[#This Row],[Verklig kostnad]])","v":""},{"$f":"Månatliga_utgifter_tabell[[#This Row],[Verklig kostnad]]","v":0}]
[null,"Gåva 2","Gåvor och välgörenhet",null,null,{"$f":"IF(OR(Månatliga_utgifter_tabell[[#This Row],[Planerad kostnad]]=\"\",Månatliga_utgifter_tabell[[#This Row],[Verklig kostnad]]=\"\"),\"\",Månatliga_utgifter_tabell[[#This Row],[Planerad kostnad]]-Månatliga_utgifter_tabell[[#This Row],[Verklig kostnad]])","v":""},{"$f":"Månatliga_utgifter_tabell[[#This Row],[Verklig kostnad]]","v":0}]
[null,"Kabel-/satellit-tv","Bostad",{"v":100,"d":"100 kr"},{"v":100,"d":"100 kr"},{"$f":"IF(OR(Månatliga_utgifter_tabell[[#This Row],[Planerad kostnad]]=\"\",Månatliga_utgifter_tabell[[#This Row],[Verklig kostnad]]=\"\"),\"\",Månatliga_utgifter_tabell[[#This Row],[Planerad kostnad]]-Månatliga_utgifter_tabell[[#This Row],[Verklig kostnad]])","v":{"v":0,"d":"0 kr"}},{"$f":"Månatliga_utgifter_tabell[[#This Row],[Verklig kostnad]]","v":100}]
[null,"El","Bostad",{"v":45,"d":"45 kr"},{"v":50,"d":"50 kr"},{"$f":"IF(OR(Månatliga_utgifter_tabell[[#This Row],[Planerad kostnad]]=\"\",Månatliga_utgifter_tabell[[#This Row],[Verklig kostnad]]=\"\"),\"\",Månatliga_utgifter_tabell[[#This Row],[Planerad kostnad]]-Månatliga_utgifter_tabell[[#This Row],[Verklig kostnad]])","v":{"v":-5,"d":"-5 kr"}},{"$f":"Månatliga_utgifter_tabell[[#This Row],[Verklig kostnad]]","v":50}]
[null,"Bensin","Bostad",{"v":300,"d":"300 kr"},{"v":400,"d":"400 kr"},{"$f":"IF(OR(Månatliga_utgifter_tabell[[#This Row],[Planerad kostnad]]=\"\",Månatliga_utgifter_tabell[[#This Row],[Verklig kostnad]]=\"\"),\"\",Månatliga_utgifter_tabell[[#This Row],[Planerad kostnad]]-Månatliga_utgifter_tabell[[#This Row],[Verklig kostnad]])","v":{"v":-100,"d":"-100 kr"}},{"$f":"Månatliga_utgifter_tabell[[#This Row],[Verklig kostnad]]","v":400}]
[null,"Städning","Bostad",{"v":200,"d":"200 kr"},null,{"$f":"IF(OR(Månatliga_utgifter_tabell[[#This Row],[Planerad kostnad]]=\"\",Månatliga_utgifter_tabell[[#This Row],[Verklig kostnad]]=\"\"),\"\",Månatliga_utgifter_tabell[[#This Row],[Planerad kostnad]]-Månatliga_utgifter_tabell[[#This Row],[Verklig kostnad]])","v":""},{"$f":"Månatliga_utgifter_tabell[[#This Row],[Verklig kostnad]]","v":0}]
[null,"Underhåll","Bostad",{"v":200,"d":"200 kr"},{"v":150,"d":"150 kr"},{"$f":"IF(OR(Månatliga_utgifter_tabell[[#This Row],[Planerad kostnad]]=\"\",Månatliga_utgifter_tabell[[#This Row],[Verklig kostnad]]=\"\"),\"\",Månatliga_utgifter_tabell[[#This Row],[Planerad kostnad]]-Månatliga_utgifter_tabell[[#This Row],[Verklig kostnad]])","v":{"v":50,"d":"50 kr"}},{"$f":"Månatliga_utgifter_tabell[[#This Row],[Verklig kostnad]]","v":150}]
[null,"Bostadslån eller hyra","Bostad",{"v":1700,"d":"1,700 kr"},{"v":1700,"d":"1,700 kr"},{"$f":"IF(OR(Månatliga_utgifter_tabell[[#This Row],[Planerad kostnad]]=\"\",Månatliga_utgifter_tabell[[#This Row],[Verklig kostnad]]=\"\"),\"\",Månatliga_utgifter_tabell[[#This Row],[Planerad kostnad]]-Månatliga_utgifter_tabell[[#This Row],[Verklig kostnad]])","v":{"v":0,"d":"0 kr"}},{"$f":"Månatliga_utgifter_tabell[[#This Row],[Verklig kostnad]]","v":1700}]
[null,"Naturgas/olja","Bostad",null,null,{"$f":"IF(OR(Månatliga_utgifter_tabell[[#This Row],[Planerad kostnad]]=\"\",Månatliga_utgifter_tabell[[#This Row],[Verklig kostnad]]=\"\"),\"\",Månatliga_utgifter_tabell[[#This Row],[Planerad kostnad]]-Månatliga_utgifter_tabell[[#This Row],[Verklig kostnad]])","v":""},{"$f":"Månatliga_utgifter_tabell[[#This Row],[Verklig kostnad]]","v":0}]
[null,"Internet","Bostad",{"v":100,"d":"100 kr"},{"v":100,"d":"100 kr"},{"$f":"IF(OR(Månatliga_utgifter_tabell[[#This Row],[Planerad kostnad]]=\"\",Månatliga_utgifter_tabell[[#This Row],[Verklig kostnad]]=\"\"),\"\",Månatliga_utgifter_tabell[[#This Row],[Planerad kostnad]]-Månatliga_utgifter_tabell[[#This Row],[Verklig kostnad]])","v":{"v":0,"d":"0 kr"}},{"$f":"Månatliga_utgifter_tabell[[#This Row],[Verklig kostnad]]","v":100}]
[null,"Telefon (mobil)","Bostad",{"v":60,"d":"60 kr"},{"v":60,"d":"60 kr"},{"$f":"IF(OR(Månatliga_utgifter_tabell[[#This Row],[Planerad kostnad]]=\"\",Månatliga_utgifter_tabell[[#This Row],[Verklig kostnad]]=\"\"),\"\",Månatliga_utgifter_tabell[[#This Row],[Planerad kostnad]]-Månatliga_utgifter_tabell[[#This Row],[Verklig kostnad]])","v":{"v":0,"d":"0 kr"}},{"$f":"Månatliga_utgifter_tabell[[#This Row],[Verklig kostnad]]","v":60}]
[null,"Telefon (hem)","Bostad",{"v":35,"d":"35 kr"},{"v":39,"d":"39 kr"},{"$f":"IF(OR(Månatliga_utgifter_tabell[[#This Row],[Planerad kostnad]]=\"\",Månatliga_utgifter_tabell[[#This Row],[Verklig kostnad]]=\"\"),\"\",Månatliga_utgifter_tabell[[#This Row],[Planerad kostnad]]-Månatliga_utgifter_tabell[[#This Row],[Verklig kostnad]])","v":{"v":-4,"d":"-4 kr"}},{"$f":"Månatliga_utgifter_tabell[[#This Row],[Verklig kostnad]]","v":39}]
[null,"Material","Bostad",{"v":40,"d":"40 kr"},{"v":55,"d":"55 kr"},{"$f":"IF(OR(Månatliga_utgifter_tabell[[#This Row],[Planerad kostnad]]=\"\",Månatliga_utgifter_tabell[[#This Row],[Verklig kostnad]]=\"\"),\"\",Månatliga_utgifter_tabell[[#This Row],[Planerad kostnad]]-Månatliga_utgifter_tabell[[#This Row],[Verklig kostnad]])","v":{"v":-15,"d":"-15 kr"}},{"$f":"Månatliga_utgifter_tabell[[#This Row],[Verklig kostnad]]","v":55}]
[null,"Sophämtning och återvinning","Bostad",{"v":25,"d":"25 kr"},{"v":22,"d":"22 kr"},{"$f":"IF(OR(Månatliga_utgifter_tabell[[#This Row],[Planerad kostnad]]=\"\",Månatliga_utgifter_tabell[[#This Row],[Verklig kostnad]]=\"\"),\"\",Månatliga_utgifter_tabell[[#This Row],[Planerad kostnad]]-Månatliga_utgifter_tabell[[#This Row],[Verklig kostnad]])","v":{"v":3,"d":"3 kr"}},{"$f":"Månatliga_utgifter_tabell[[#This Row],[Verklig kostnad]]","v":22}]
[null,"VA-avgifter","Bostad",{"v":25,"d":"25 kr"},{"v":26,"d":"26 kr"},{"$f":"IF(OR(Månatliga_utgifter_tabell[[#This Row],[Planerad kostnad]]=\"\",Månatliga_utgifter_tabell[[#This Row],[Verklig kostnad]]=\"\"),\"\",Månatliga_utgifter_tabell[[#This Row],[Planerad kostnad]]-Månatliga_utgifter_tabell[[#This Row],[Verklig kostnad]])","v":{"v":-1,"d":"-1 kr"}},{"$f":"Månatliga_utgifter_tabell[[#This Row],[Verklig kostnad]]","v":26}]
[null,"Hälsovård","Försäkring",{"v":400,"d":"400 kr"},{"v":400,"d":"400 kr"},{"$f":"IF(OR(Månatliga_utgifter_tabell[[#This Row],[Planerad kostnad]]=\"\",Månatliga_utgifter_tabell[[#This Row],[Verklig kostnad]]=\"\"),\"\",Månatliga_utgifter_tabell[[#This Row],[Planerad kostnad]]-Månatliga_utgifter_tabell[[#This Row],[Verklig kostnad]])","v":{"v":0,"d":"0 kr"}},{"$f":"Månatliga_utgifter_tabell[[#This Row],[Verklig kostnad]]","v":400}]
[null,"Hemförsäkring","Försäkring",{"v":400,"d":"400 kr"},{"v":400,"d":"400 kr"},{"$f":"IF(OR(Månatliga_utgifter_tabell[[#This Row],[Planerad kostnad]]=\"\",Månatliga_utgifter_tabell[[#This Row],[Verklig kostnad]]=\"\"),\"\",Månatliga_utgifter_tabell[[#This Row],[Planerad kostnad]]-Månatliga_utgifter_tabell[[#This Row],[Verklig kostnad]])","v":{"v":0,"d":"0 kr"}},{"$f":"Månatliga_utgifter_tabell[[#This Row],[Verklig kostnad]]","v":400}]
[null,"Livförsäkring","Försäkring",{"v":100,"d":"100 kr"},{"v":100,"d":"100 kr"},{"$f":"IF(OR(Månatliga_utgifter_tabell[[#This Row],[Planerad kostnad]]=\"\",Månatliga_utgifter_tabell[[#This Row],[Verklig kostnad]]=\"\"),\"\",Månatliga_utgifter_tabell[[#This Row],[Planerad kostnad]]-Månatliga_utgifter_tabell[[#This Row],[Verklig kostnad]])","v":{"v":0,"d":"0 kr"}},{"$f":"Månatliga_utgifter_tabell[[#This Row],[Verklig kostnad]]","v":100}]
[null,"Kreditkort 1","Lån",{"v":200,"d":"200 kr"},{"v":200,"d":"200 kr"},{"$f":"IF(OR(Månatliga_utgifter_tabell[[#This Row],[Planerad kostnad]]=\"\",Månatliga_utgifter_tabell[[#This Row],[Verklig kostnad]]=\"\"),\"\",Månatliga_utgifter_tabell[[#This Row],[Planerad kostnad]]-Månatliga_utgifter_tabell[[#This Row],[Verklig kostnad]])","v":{"v":0,"d":"0 kr"}},{"$f":"Månatliga_utgifter_tabell[[#This Row],[Verklig kostnad]]","v":200}]
[null,"Kreditkort 2","Lån",null,null,{"$f":"IF(OR(Månatliga_utgifter_tabell[[#This Row],[Planerad kostnad]]=\"\",Månatliga_utgifter_tabell[[#This Row],[Verklig kostnad]]=\"\"),\"\",Månatliga_utgifter_tabell[[#This Row],[Planerad kostnad]]-Månatliga_utgifter_tabell[[#This Row],[Verklig kostnad]])","v":""},{"$f":"Månatliga_utgifter_tabell[[#This Row],[Verklig kostnad]]","v":0}]
[null,"Kreditkort 3","Lån",null,null,{"$f":"IF(OR(Månatliga_utgifter_tabell[[#This Row],[Planerad kostnad]]=\"\",Månatliga_utgifter_tabell[[#This Row],[Verklig kostnad]]=\"\"),\"\",Månatliga_utgifter_tabell[[#This Row],[Planerad kostnad]]-Månatliga_utgifter_tabell[[#This Row],[Verklig kostnad]])","v":""},{"$f":"Månatliga_utgifter_tabell[[#This Row],[Verklig kostnad]]","v":0}]
[null,"Privat","Lån",null,null,{"$f":"IF(OR(Månatliga_utgifter_tabell[[#This Row],[Planerad kostnad]]=\"\",Månatliga_utgifter_tabell[[#This Row],[Verklig kostnad]]=\"\"),\"\",Månatliga_utgifter_tabell[[#This Row],[Planerad kostnad]]-Månatliga_utgifter_tabell[[#This Row],[Verklig kostnad]])","v":""},{"$f":"Månatliga_utgifter_tabell[[#This Row],[Verklig kostnad]]","v":0}]
[null,"Student","Lån",null,null,{"$f":"IF(OR(Månatliga_utgifter_tabell[[#This Row],[Planerad kostnad]]=\"\",Månatliga_utgifter_tabell[[#This Row],[Verklig kostnad]]=\"\"),\"\",Månatliga_utgifter_tabell[[#This Row],[Planerad kostnad]]-Månatliga_utgifter_tabell[[#This Row],[Verklig kostnad]])","v":""},{"$f":"Månatliga_utgifter_tabell[[#This Row],[Verklig kostnad]]","v":0}]
[null,"Kläder","Hygien",{"v":150,"d":"150 kr"},{"v":140,"d":"140 kr"},{"$f":"IF(OR(Månatliga_utgifter_tabell[[#This Row],[Planerad kostnad]]=\"\",Månatliga_utgifter_tabell[[#This Row],[Verklig kostnad]]=\"\"),\"\",Månatliga_utgifter_tabell[[#This Row],[Planerad kostnad]]-Månatliga_utgifter_tabell[[#This Row],[Verklig kostnad]])","v":{"v":10,"d":"10 kr"}},{"$f":"Månatliga_utgifter_tabell[[#This Row],[Verklig kostnad]]","v":140}]
[null,"Kemtvätt","Hygien",null,null,{"$f":"IF(OR(Månatliga_utgifter_tabell[[#This Row],[Planerad kostnad]]=\"\",Månatliga_utgifter_tabell[[#This Row],[Verklig kostnad]]=\"\"),\"\",Månatliga_utgifter_tabell[[#This Row],[Planerad kostnad]]-Månatliga_utgifter_tabell[[#This Row],[Verklig kostnad]])","v":""},{"$f":"Månatliga_utgifter_tabell[[#This Row],[Verklig kostnad]]","v":0}]
[null,"Hår/naglar","Hygien",null,null,{"$f":"IF(OR(Månatliga_utgifter_tabell[[#This Row],[Planerad kostnad]]=\"\",Månatliga_utgifter_tabell[[#This Row],[Verklig kostnad]]=\"\"),\"\",Månatliga_utgifter_tabell[[#This Row],[Planerad kostnad]]-Månatliga_utgifter_tabell[[#This Row],[Verklig kostnad]])","v":""},{"$f":"Månatliga_utgifter_tabell[[#This Row],[Verklig kostnad]]","v":0}]
[null,"Gym","Hygien",null,null,{"$f":"IF(OR(Månatliga_utgifter_tabell[[#This Row],[Planerad kostnad]]=\"\",Månatliga_utgifter_tabell[[#This Row],[Verklig kostnad]]=\"\"),\"\",Månatliga_utgifter_tabell[[#This Row],[Planerad kostnad]]-Månatliga_utgifter_tabell[[#This Row],[Verklig kostnad]])","v":""},{"$f":"Månatliga_utgifter_tabell[[#This Row],[Verklig kostnad]]","v":0}]
[null,"Sjukvård","Hygien",null,null,{"$f":"IF(OR(Månatliga_utgifter_tabell[[#This Row],[Planerad kostnad]]=\"\",Månatliga_utgifter_tabell[[#This Row],[Verklig kostnad]]=\"\"),\"\",Månatliga_utgifter_tabell[[#This Row],[Planerad kostnad]]-Månatliga_utgifter_tabell[[#This Row],[Verklig kostnad]])","v":""},{"$f":"Månatliga_utgifter_tabell[[#This Row],[Verklig kostnad]]","v":0}]
[null,"Mat","Husdjur",{"v":150,"d":"150 kr"},{"v":75,"d":"75 kr"},{"$f":"IF(OR(Månatliga_utgifter_tabell[[#This Row],[Planerad kostnad]]=\"\",Månatliga_utgifter_tabell[[#This Row],[Verklig kostnad]]=\"\"),\"\",Månatliga_utgifter_tabell[[#This Row],[Planerad kostnad]]-Månatliga_utgifter_tabell[[#This Row],[Verklig kostnad]])","v":{"v":75,"d":"75 kr"}},{"$f":"Månatliga_utgifter_tabell[[#This Row],[Verklig kostnad]]","v":75}]
[null,"Omvårdnad","Husdjur",{"v":20,"d":"20 kr"},{"v":25,"d":"25 kr"},{"$f":"IF(OR(Månatliga_utgifter_tabell[[#This Row],[Planerad kostnad]]=\"\",Månatliga_utgifter_tabell[[#This Row],[Verklig kostnad]]=\"\"),\"\",Månatliga_utgifter_tabell[[#This Row],[Planerad kostnad]]-Månatliga_utgifter_tabell[[#This Row],[Verklig kostnad]])","v":{"v":-5,"d":"-5 kr"}},{"$f":"Månatliga_utgifter_tabell[[#This Row],[Verklig kostnad]]","v":25}]
[null,"Sjukvård","Husdjur",null,null,{"$f":"IF(OR(Månatliga_utgifter_tabell[[#This Row],[Planerad kostnad]]=\"\",Månatliga_utgifter_tabell[[#This Row],[Verklig kostnad]]=\"\"),\"\",Månatliga_utgifter_tabell[[#This Row],[Planerad kostnad]]-Månatliga_utgifter_tabell[[#This Row],[Verklig kostnad]])","v":""},{"$f":"Månatliga_utgifter_tabell[[#This Row],[Verklig kostnad]]","v":0}]
[null,"Leksaker","Husdjur",null,null,{"$f":"IF(OR(Månatliga_utgifter_tabell[[#This Row],[Planerad kostnad]]=\"\",Månatliga_utgifter_tabell[[#This Row],[Verklig kostnad]]=\"\"),\"\",Månatliga_utgifter_tabell[[#This Row],[Planerad kostnad]]-Månatliga_utgifter_tabell[[#This Row],[Verklig kostnad]])","v":""},{"$f":"Månatliga_utgifter_tabell[[#This Row],[Verklig kostnad]]","v":0}]
[null,"Investeringskonto","Sparande",{"v":200,"d":"200 kr"},{"v":200,"d":"200 kr"},{"$f":"IF(OR(Månatliga_utgifter_tabell[[#This Row],[Planerad kostnad]]=\"\",Månatliga_utgifter_tabell[[#This Row],[Verklig kostnad]]=\"\"),\"\",Månatliga_utgifter_tabell[[#This Row],[Planerad kostnad]]-Månatliga_utgifter_tabell[[#This Row],[Verklig kostnad]])","v":{"v":0,"d":"0 kr"}},{"$f":"Månatliga_utgifter_tabell[[#This Row],[Verklig kostnad]]","v":200}]
[null,"Pensionssparande","Sparande",null,null,{"$f":"IF(OR(Månatliga_utgifter_tabell[[#This Row],[Planerad kostnad]]=\"\",Månatliga_utgifter_tabell[[#This Row],[Verklig kostnad]]=\"\"),\"\",Månatliga_utgifter_tabell[[#This Row],[Planerad kostnad]]-Månatliga_utgifter_tabell[[#This Row],[Verklig kostnad]])","v":""},{"$f":"Månatliga_utgifter_tabell[[#This Row],[Verklig kostnad]]","v":0}]
[null,"Statlig","Skatter",{"v":300,"d":"300 kr"},{"v":300,"d":"300 kr"},{"$f":"IF(OR(Månatliga_utgifter_tabell[[#This Row],[Planerad kostnad]]=\"\",Månatliga_utgifter_tabell[[#This Row],[Verklig kostnad]]=\"\"),\"\",Månatliga_utgifter_tabell[[#This Row],[Planerad kostnad]]-Månatliga_utgifter_tabell[[#This Row],[Verklig kostnad]])","v":{"v":0,"d":"0 kr"}},{"$f":"Månatliga_utgifter_tabell[[#This Row],[Verklig kostnad]]","v":300}]
[null,"Lokala","Skatter",null,null,{"$f":"IF(OR(Månatliga_utgifter_tabell[[#This Row],[Planerad kostnad]]=\"\",Månatliga_utgifter_tabell[[#This Row],[Verklig kostnad]]=\"\"),\"\",Månatliga_utgifter_tabell[[#This Row],[Planerad kostnad]]-Månatliga_utgifter_tabell[[#This Row],[Verklig kostnad]])","v":""},{"$f":"Månatliga_utgifter_tabell[[#This Row],[Verklig kostnad]]","v":0}]
[null,"Landsting","Skatter",null,null,{"$f":"IF(OR(Månatliga_utgifter_tabell[[#This Row],[Planerad kostnad]]=\"\",Månatliga_utgifter_tabell[[#This Row],[Verklig kostnad]]=\"\"),\"\",Månatliga_utgifter_tabell[[#This Row],[Planerad kostnad]]-Månatliga_utgifter_tabell[[#This Row],[Verklig kostnad]])","v":""},{"$f":"Månatliga_utgifter_tabell[[#This Row],[Verklig kostnad]]","v":0}]
[null,"Buss/taxi","Transport",{"v":100,"d":"100 kr"},{"v":150,"d":"150 kr"},{"$f":"IF(OR(Månatliga_utgifter_tabell[[#This Row],[Planerad kostnad]]=\"\",Månatliga_utgifter_tabell[[#This Row],[Verklig kostnad]]=\"\"),\"\",Månatliga_utgifter_tabell[[#This Row],[Planerad kostnad]]-Månatliga_utgifter_tabell[[#This Row],[Verklig kostnad]])","v":{"v":-50,"d":"-50 kr"}},{"$f":"Månatliga_utgifter_tabell[[#This Row],[Verklig kostnad]]","v":150}]
[null,"Bränsle","Transport",{"v":450,"d":"450 kr"},{"v":400,"d":"400 kr"},{"$f":"IF(OR(Månatliga_utgifter_tabell[[#This Row],[Planerad kostnad]]=\"\",Månatliga_utgifter_tabell[[#This Row],[Verklig kostnad]]=\"\"),\"\",Månatliga_utgifter_tabell[[#This Row],[Planerad kostnad]]-Månatliga_utgifter_tabell[[#This Row],[Verklig kostnad]])","v":{"v":50,"d":"50 kr"}},{"$f":"Månatliga_utgifter_tabell[[#This Row],[Verklig kostnad]]","v":400}]
[null,"Försäkring","Transport",{"v":300,"d":"300 kr"},{"v":300,"d":"300 kr"},{"$f":"IF(OR(Månatliga_utgifter_tabell[[#This Row],[Planerad kostnad]]=\"\",Månatliga_utgifter_tabell[[#This Row],[Verklig kostnad]]=\"\"),\"\",Månatliga_utgifter_tabell[[#This Row],[Planerad kostnad]]-Månatliga_utgifter_tabell[[#This Row],[Verklig kostnad]])","v":{"v":0,"d":"0 kr"}},{"$f":"Månatliga_utgifter_tabell[[#This Row],[Verklig kostnad]]","v":300}]
[null,"Licensavgift ","Transport",{"v":25,"d":"25 kr"},{"v":25,"d":"25 kr"},{"$f":"IF(OR(Månatliga_utgifter_tabell[[#This Row],[Planerad kostnad]]=\"\",Månatliga_utgifter_tabell[[#This Row],[Verklig kostnad]]=\"\"),\"\",Månatliga_utgifter_tabell[[#This Row],[Planerad kostnad]]-Månatliga_utgifter_tabell[[#This Row],[Verklig kostnad]])","v":{"v":0,"d":"0 kr"}},{"$f":"Månatliga_utgifter_tabell[[#This Row],[Verklig kostnad]]","v":25}]
[null,"Underhåll","Transport",{"v":100,"d":"100 kr"},{"v":50,"d":"50 kr"},{"$f":"IF(OR(Månatliga_utgifter_tabell[[#This Row],[Planerad kostnad]]=\"\",Månatliga_utgifter_tabell[[#This Row],[Verklig kostnad]]=\"\"),\"\",Månatliga_utgifter_tabell[[#This Row],[Planerad kostnad]]-Månatliga_utgifter_tabell[[#This Row],[Verklig kostnad]])","v":{"v":50,"d":"50 kr"}},{"$f":"Månatliga_utgifter_tabell[[#This Row],[Verklig kostnad]]","v":50}]
[null,"Parkeringsavgifter","Transport",null,null,{"$f":"IF(OR(Månatliga_utgifter_tabell[[#This Row],[Planerad kostnad]]=\"\",Månatliga_utgifter_tabell[[#This Row],[Verklig kostnad]]=\"\"),\"\",Månatliga_utgifter_tabell[[#This Row],[Planerad kostnad]]-Månatliga_utgifter_tabell[[#This Row],[Verklig kostnad]])","v":""},{"$f":"Månatliga_utgifter_tabell[[#This Row],[Verklig kostnad]]","v":0}]
[null,"Avbetalning, fordon","Transport",{"v":450,"d":"450 kr"},{"v":450,"d":"450 kr"},{"$f":"IF(OR(Månatliga_utgifter_tabell[[#This Row],[Planerad kostnad]]=\"\",Månatliga_utgifter_tabell[[#This Row],[Verklig kostnad]]=\"\"),\"\",Månatliga_utgifter_tabell[[#This Row],[Planerad kostnad]]-Månatliga_utgifter_tabell[[#This Row],[Verklig kostnad]])","v":{"v":0,"d":"0 kr"}},{"$f":"Månatliga_utgifter_tabell[[#This Row],[Verklig kostnad]]","v":450}]

{"sheet":"Ytterligare data","index":3,"n_rows":17,"n_cols":6,"rows_kept":17}
[{"$nulls":5}," "]
[null,"Pivottabell för diagrammet Budgetöversikt",null,null,"Kategorilista"]
[]
[null,"Kategorier","Kostnad",null,"Om du vill lägga till en kategori skriver du under"]
[null,"Husdjur",{"v":100,"d":"100 kr"},null,"Barn"]
[null,"Gåvor och välgörenhet",{"v":125,"d":"125 kr"},null,"Nöjen"]
[null,"Barn",{"v":140,"d":"140 kr"},null,"Mat"]
[null,"Hygien",{"v":140,"d":"140 kr"},null,"Gåvor och välgörenhet"]
[null,"Sparande",{"v":200,"d":"200 kr"},null,"Bostad"]
[null,"Lån",{"v":200,"d":"200 kr"},null,"Försäkring"]
[null,"Skatter",{"v":300,"d":"300 kr"},null,"Lån"]
[null,"Nöjen",{"v":358,"d":"358 kr"},null,"Hygien"]
[null,"Försäkring",{"v":900,"d":"900 kr"},null,"Husdjur"]
[null,"Mat",{"v":1320,"d":"1,320 kr"},null,"Sparande"]
[null,"Transport",{"v":1375,"d":"1,375 kr"},null,"Skatter"]
[null,"Bostad",{"v":2702,"d":"2,702 kr"},null,"Transport"]
[null,"Grand Total",{"v":7860,"d":"7,860 kr"}]